Cogmind - Beta 14 @@@ ROGUE MODE // 2024.09.03 @ 15:12:49 Player: Evel Wyn Result: Self-destructed Performance ------------- Evolutions (1) 500 Regions Visited (2) 400 Robots Destroyed (24) 120 Value Destroyed (699) 699 Prototype IDs (0) 0 Alien Tech Used (0) 0 Bonus (0) 0 TOTAL SCORE: 1719 Bonus ------- None Cogmind --------- Core Integrity 312/400 Matter 300/300 Energy 100/100 System Corruption 0% Temperature Cool (0) Movement Core (400) Ox7 Location -9/Materials Parts ------- > --- POWER (1) -------- (None) > --- PROPULSION (2) --- (None) > --- UTILITY (4) ------ Large Storage Unit Core Shielding Power Shielding > --- WEAPON (2) ------- (None) > --- INVENTORY (15) --- Light Nuclear Core Improved Treads Improved Treads Improved Treads Large Storage Unit Huge Storage Unit Large Battery (200) Medium Matter Pod (100) Sensor Array Improved Terrain Scanner Light Armor Plating Medium Laser Medium Laser Improved Light Cannon Peak State ------------ > --- POWER ------------ Improved Ion Engine > --- PROPULSION ------- Improved Treads Improved Treads > --- UTILITY ---------- Large Storage Unit Core Shielding Power Shielding Light Armor Plating > --- WEAPON ----------- Heavy EM Pulse Gun Improved Light Cannon > --- INVENTORY -------- Ion Engine Light Nuclear Core Improved Treads Improved Treads Improved Treads Large Storage Unit Huge Storage Unit Large Battery Medium Matter Pod Sensor Array Improved Terrain Scanner Medium Laser Medium Laser Improved Light Cannon Grenade Launcher [Rating: 16] Favorites ----------- Power Ion Engine Engine Ion Engine Propulsion Improved Treads Treads Improved Treads Leg Aluminum Leg Utility Large Storage Unit Storage Large Storage Unit Protection Light Armor Plating Weapon Grenade Launcher Energy Gun Medium Laser Ballistic Gun Assault Rifle Ballistic Cannon Improved Light Cannon Launcher Grenade Launcher Special Melee Weapon Datajack Build | -11 -10 -9 ------- Run | Yrd Mat Mat Slots Evolved 2 | . . 2 Power . | . . . Propulsion . | . . . Utility 2 | . . 2 Weapon . | . . . Parts Attached 26 | 6 15 5 Power 3 | 1 1 1 Engine 3 | 1 1 1 Core . | . . . Reactor . | . . . Propulsion 6 | 2 4 . Treads 4 | . 4 . Leg 2 | 2 . . Wheel . | . . . Hover . | . . . Flight . | . . . Utility 6 | 1 3 2 Device . | . . . Storage 3 | 1 2 . Processor . | . . . Hackware . | . . . Protection 3 | . 1 2 Artifact . | . . . Weapon 11 | 2 7 2 Energy Gun 3 | 1 1 1 Energy Cannon . | . . . Ballistic Gun 1 | 1 . . Ballistic Cannon 2 | . 2 . Launcher 3 | . 2 1 Special Weapon . | . . . Impact Weapon . | . . . Slashing Weapon . | . . . Piercing Weapon . | . . . Special Melee Weapon 2 | . 2 . Unidentified Prototypes . | . . . Parts Lost 6 | . 1 5 Power 1 | . . 1 Propulsion . | . . . Utility 1 | . . 1 Weapon 4 | . 1 3 Highest Loss Streak 5 | . 1 5 To Critical Strikes . | . . . Average Slot Usage (%) 97 | . 97 96 Engine 13 | . 14 11 Treads 23 | . 24 21 Leg 2 | . 3 . Storage 13 | . 14 11 Protection 16 | . 11 31 Energy Gun 3 | . 2 9 Ballistic Gun 6 | . 7 . Ballistic Cannon 6 | . 5 11 Launcher 8 | . 10 1 Peak Build Rating 16 | 6 12 16 Average Rating 10 | 5 9 14 On Entrance 6 | . 6 12 Naked Turns . | . . . Heaviest Build 39 | 14 35 39 Greatest Support 46 | 20 46 46 Greatest Overweight (x) 3 | 3 1 1 Average Overweight (x) . | . . . Largest Inventory Capacity 15 | 8 15 15 Average Capacity 14 | 7 14 15 Most Carried 15 | 6 15 15 Average Carried 12 | 3 12 14 Final Capacity 15 | 8 15 15 Final Carried 15 | 6 15 14 Class Distribution -------------------- 100% | Mutant Dominant Class ---------------- Mutant | -10/Materials Mutant | -9/Materials Resources | -11 -10 -9 ----------- Run | Yrd Mat Mat Matter Collected 874 | 213 427 234 Remotely . | . . . Salvage Created 806 | . 472 334 Parts 46 | . 30 16 Haulers Intercepted 2 | . 2 . Recyclers Shooed 1 | . . 1 Parts Field Recycled . | . . . Retrieved Matter . | . . . Parts Self-Destructed . | . . . Prevented . | . . . Kills | -11 -10 -9 ------- Run | Yrd Mat Mat Combat Hostiles Destroyed 16 | . 11 5 Guns 4 | . 2 2 Cannons 4 | . 1 3 AOE 8 | . 8 . Classes Destroyed 6 | . 4 2 Tunneler 2 | . 2 . Hauler 2 | . 2 . Recycler 1 | . . 1 Watcher 3 | . 2 1 Grunt 15 | . 11 4 Sentry 1 | . . 1 Best Kill Streak 6 | . 6 4 Combat Bots Only 4 | . 4 4 Max Kills in Single Turn 3 | . 3 1 Gunslinging . | . . . Exploded 2 | . 2 . Melee . | . . . Uniques/NPCs Destroyed . | . . . Combat | -11 -10 -9 -------- Run | Yrd Mat Mat Hostile Shots Fired 74 | . 27 47 Missed 26 | . 11 15 Damage Taken 883 | . 265 618 Core 126 | . 38 88 Absorbed by Shields . | . . . Redirected to Shielding 53 | . . 53 Regen/Repaired (Parts) 33 | . 33 . Core Remaining (%) 92 | 100 84 . Volleys Fired 59 | . 35 24 Largest 2 | . 2 2 Hottest 89 | . 89 84 Shots Fired 91 | . 53 38 Gun 36 | . 23 13 Cannon 42 | . 18 24 Launcher 13 | . 12 1 Special . | . . . Kinetic 55 | . 31 24 Thermal 10 | . 10 . Explosive 13 | . 12 1 Electromagnetic 13 | . . 13 Robot Hit Streak 9 | . 4 9 Robot Miss Streak 3 | . 3 2 Penetration Max . | . . . Secondary Targets . | . . . Shots Hit Robots 53 | . 29 24 Core Hits 37 | . 26 11 Critical Kills . | . . . Critical Parts Destroyed . | . . . Critical Strikes . | . . . Melee Attacks 8 | . 8 . Impact . | . . . Slashing . | . . . Piercing . | . . . Sneak Attacks 8 | . 8 . Combat Hostiles . | . . . Follow-up Attacks . | . . . Damage Inflicted 1530 | . 951 579 Guns 345 | . 174 171 Cannons 381 | . 125 256 Explosions 798 | . 652 146 Melee . | . . . Ramming 6 | . . 6 Kinetic 481 | . 225 256 Thermal 115 | . 74 41 Explosive 757 | . 652 105 Electromagnetic 171 | . . 171 Impact . | . . . Slashing . | . . . Piercing . | . . . Highest Corruption . | . . . Average Corruption . | . . . Corruption Purged . | . . . Corruption Blocked . | . . . Overload Shots . | . . . Overflow Damage 22 | . 22 . Projectiles . | . . . Explosions 22 | . 22 . Melee . | . . . Knockbacks 4 | . 2 2 Impact . | . . . Kinetic 4 | . 2 2 Secondary . | . . . Self-Inflicted Damage 54 | . 32 22 Shots 3 | . 2 1 Rammed 1 | . . 1 Targets Rammed 1 | . . 1 Kicked . | . . . Crushed . | . . . Highest Temperature 154 | . 154 132 Average Temperature 44 | . 44 44 Received Heat Transfer 252 | . 114 138 Siege Activations . | . . . Robots Corrupted . | . . . Combat Hostiles . | . . . Parts Fried 1 | . . 1 Impact Corruptions . | . . . Robots Melted . | . . . Combat Hostiles . | . . . Parts Melted . | . . . Heat Transferred 272 | . 222 50 Parts Sabotaged . | . . . Parts Stolen . | . . . Parts Stripped . | . . . Power Chain Reactions 1 | . . 1 Alert | -11 -10 -9 ------- Run | Yrd Mat Mat Peak Influence 307 | . 204 307 Initial 85 | . . 85 Average 76 | . 53 171 Maximum Alert Level 1 | . 1 1 Low Security (%) 92 | 100 98 68 Level 1 7 | . 1 31 Level 2 . | . . . Level 3 . | . . . Level 4 . | . . . Level 5 . | . . . High Security . | . . . Max Security . | . . . Squads Dispatched 2 | . 2 . Investigation 1 | . 1 . Extermination . | . . . Reinforcement 1 | . 1 . Assault . | . . . Garrison . | . . . Intercept . | . . . Searches Triggered . | . . . Construction Impeded . | . . . Haulers Reinforced . | . . . Active Scanning Responses . | . . . Cargo Convoy Interrupts . | . . . Stealth | -11 -10 -9 --------- Run | Yrd Mat Mat Distress Signals 3 | . 2 1 Communications Jammed . | . . . Distress Signals . | . . . Times Spotted 31 | . 19 12 Peak Tracking Total 5 | . 5 3 Tactical Retreats 2 | . . 2 Traps | -11 -10 -9 ------- Run | Yrd Mat Mat Traps Triggered 1 | . 1 . Indirectly . | . . . Trap Hack Attempts . | . . . Triggered . | . . . Disarmed . | . . . Reprogrammed . | . . . Reused . | . . . Traps Extracted . | . . . Installed . | . . . Triggered . | . . . Machines | -11 -10 -9 ---------- Run | Yrd Mat Mat Machines Disabled 2 | . 1 1 Max in Single Turn 1 | . 1 1 Machines Repaired . | . . . Machines Dismantled . | . . . Machines Sabotaged . | . . . Overloaded Fab Kills . | . . . Hacking | -11 -10 -9 --------- Run | Yrd Mat Mat Machines Accessed 7 | . 7 . Terminals 5 | . 5 . Fabricators . | . . . Repair Stations 1 | . 1 . Recycling Units 1 | . 1 . Scanalyzers . | . . . Garrison Access . | . . . Total Hacks 18 | . 18 . Successful 7 | . 7 . Failed 11 | . 11 . Catastrophic 2 | . 2 . Database Lockouts . | . . . Manual 15 | . 15 . Terminals 12 | . 12 . Fabricators . | . . . Repair Stations 3 | . 3 . Recycling Units 3 | . 3 . Scanalyzers . | . . . Garrison Access . | . . . Terminal Hacks . | . . . Fabricator Hacks . | . . . Repair Station Hacks 3 | . 3 . Scan Component 2 | . 2 . Repair 1 | . 1 . Recycling Unit Hacks . | . . . Scanalyzer . | . . . Garrison Access Hacks . | . . . Unauthorized Hacks 4 | . 4 . Terminals 4 | . 4 . Assimilate 4 | . 4 . Fabricators . | . . . Repair Stations . | . . . Recycling Units . | . . . Scanalyzers . | . . . Garrison Access . | . . . Data Cores Recovered . | . . . Used . | . . . Hacking Detections 6 | . 6 . Full Trace Events 1 | . 1 . Feedback Events . | . . . Feedback Blocked . | . . . Robot Schematics Acquired . | . . . Robots Built . | . . . Authchips . | . . . Time . | . . . Total Robot Build Rating . | . . . Part Schematics Acquired . | . . . Parts Built . | . . . Authchips . | . . . Time . | . . . Total Part Build Rating . | . . . Parts Repaired 1 | . 1 . Time 26 | . 26 . Parts Recycled . | . . . Recycled Matter . | . . . Retrieved Matter . | . . . Retrieved Components . | . . . Parts Scanalyzed . | . . . Part Schematics Acquired . | . . . Parts Damaged . | . . . Bothacking | -11 -10 -9 ------------ Run | Yrd Mat Mat Used RIF Installer . | . . . Robots Hacked 4 | . 4 . Non-combat 4 | . 4 . Combat . | . . . Robot Hacks Applied 5 | . 5 . parse_system 2 | . 2 . no_distress 3 | . 3 . Relay Couplers Released . | . . . Fabnet Peak Effective % . | . . . Robots Rewired . | . . . Allies Hacked . | . . . Hacks Repelled . | . . . Allies | -11 -10 -9 -------- Run | Yrd Mat Mat Total Allies . | . . . Largest Group . | . . . Highest-Rated Group . | . . . Highest-Rated Ally . | . . . Total Orders . | . . . Ally Attacks . | . . . Total Damage . | . . . Kills . | . . . Allies Corrupted . | . . . Allies Melted . | . . . Intel | -11 -10 -9 ------- Run | Yrd Mat Mat Robot Analysis Total . | . . . Derelict Logs Recovered . | . . . Drone Launches . | . . . Drone Recoveries . | . . . Exploration | -11 -10 -9 ------------- Run | Yrd Mat Mat Turns Passed 1514 | 73 1112 329 Spaces Moved 800 | 45 600 155 Core 6 | 6 . . Treads 660 | . 505 155 Legs 134 | 39 95 . Wheels . | . . . Hover . | . . . Flight . | . . . Fastest Speed 50 | 50 120 160 Average Speed 154 | 130 154 162 Slowest Speed 240 | 200 190 240 Overloaded Moves . | . . . Propulsion Burnouts . | . . . Robots Hopped . | . . . Cave-ins Triggered . | . . . Exploration Rate (%) 33 | 3 85 12 Regions Visited 2 Branch Regions . Pre-discovered Areas . | . . . Known Exits Taken . | . . . Unknown Exits Taken 2 | 1 1 . Scrap Searched . | . . . Spaces Dug 12 | . 12 . Terrain Destroyed 44 | . 34 10 Melee . | . . . Projectile 1 | . 1 . AOE 43 | . 33 10 Terrain Rammed . | . . . Walls Destroyed . | . . . Machines Disabled . | . . . Actions | -11 -10 -9 --------- Run | Yrd Mat Mat Total 991 | 56 741 194 Wait 39 | . 35 4 Move 798 | 44 599 155 Hop . | . . . Pick Up 34 | 6 25 3 Fast Attach 11 | 6 5 . Attach 4 | . 1 3 Detach 3 | . 3 . Swap 11 | . 9 2 Drop 23 | . 21 2 Fire 59 | . 35 24 Melee 8 | . 8 . Ram . | . . . Kick . | . . . Crush 1 | . . 1 Escape Stasis . | . . . Rewire . | . . . Trap . | . . . Miscellaneous . | . . . Route ------- -11/Scrapyard -10/Materials (discovered 4 exits: [*Mat x2] / [*Min x2]) -9/Materials History --------- Turn | Location | Event 10 | -11/Scrapyard | Discovered new exit (range 16) 74 | -11/Scrapyard | Entered Materials 305 | -10/Materials | Build established: Mutant 407 | -10/Materials | Discovered new exit (range 16) 652 | -10/Materials | Discovered new exit (range 16) 882 | -10/Materials | Discovered new exit (range 7) 1055 | -10/Materials | Discovered new exit (range 10) 1160 | -10/Materials | Repaired Power Shielding 1186 | -10/Materials | Entered another Materials area 1186 | -9/Materials | Evolved 2 slots: Utility x2 1515 | -9/Materials | Self-destructed Last Messages --------------- 01457_ Hvy. EM Pulse Gun destroyed. 01460_ K-01 Serf collects debris. 01462_ Processing Tank disabled. 01463_ K-01 Serf collects debris. 01471_ L-31 Rogue knocked back. 01474_ K-01 Serf collects debris. 01476_ Lgt. Armor Plating destroyed. 01479_ K-01 Serf collects debris. 01482_ Acquired 30 matter. 01485_ Acquired 4 matter. 01492_ L-31 Rogue knocked back. 01495_ Imp. Treads severed. 01495_ Imp. Treads crushed and broken. 01502_ Acquired 16 matter. 01503_ Grenade Launcher destroyed. 01507_ Imp. Treads severed. 01510_ Acquired 4 matter. 01512_ Acquired 2 matter. 01512_ Imp. Ion Engine destroyed. 01514_ Imp. Light Cannon destroyed. Map ----- +----------------------------------------------------+ | ?????????????????????????????????????????????????? | | ?????????????????????????????????????????????????? | | ?????????????????????????????????????????????????? | | ?????????????????????????????????????????????????? | | ?????????????????????????????????????????????????? | | ?????????????????????????????????????????????????? | | ?????????????????????????????????????????????????? | | ?????????????????????????????????????????????????? | | ?????????????????????????????????????????????????? | | ?????????????????????????????????????????????????? | | ?????????????????????????????????????????????????? | | ?????????????????????????????????????????????????? | | ?????????????????????????????????????????????????? | | ?????????????????????????????????????????????????? | | ?? #???????????????????????????????????????????? | | ? #???????????????????????????????????????????? | | ## #???????????????????????????????????????????? | | ## #???????????????????????????????????????????? | | ## #???????????????????????????????????????????? | | ## #???????????????????????????????????????????? | | ## #???????????????????????????????????????????? | | ## #???????????????????????????????????????????? | | ## #?????????#####?????????????????????????????? | | ## #??###################??????#???????????????? | | ## #??# %+=%*=!l=#????? #???????????????? | | ## #??# #######@#????? #???????????????? | | ## #### % #######/####? #???????????????? | | # """"" ## = #? #???? """ ?????? | | / "" ## # ## ????? | | #%"" ## """ # ????????? | | ##### # # """"" / #???????????????? | | ????# #% ## """"" # #???????????????? | | ????# ### ### """"" # #???????????????? | | ????# ^ #?#######??# """ #? #???????????????? | | ????# #??????????# #? #???????????????? | | ????# #??????????###########?? ???????????????? | | ????# ??????????????????????? ??????????????? | | ????# ??????????????????????? ?????????????? | | ????# ??????????????????????? ????????????? | | ????# ???????????????????????####???????????? | | ????# ??????????????????????????????????????? | | ????# ?????????????????????????????????????? | | ???? ?????????????????????????????????????? | | ????? ???????????????????????????????????????? | | ?????###?????????????????????????????????????????? | | ?????????????????????????????????????????????????? | | ?????????????????????????????????????????????????? | | ?????????????????????????????????????????????????? | | ?????????????????????????????????????????????????? | | ?????????????????????????????????????????????????? | +----------------------------------------------------+ Best States ------------- Heat Dissipation 28 Energy Generation 12 Energy Capacity 265 Matter Stores 300 Matter Capacity 300 Sight Range 16 Terrain Scan Density 10 Armor Coverage 150 Core Shielding 20 Power Shielding 33 Evasion (%) 55 Recoil Reduction 2 Item Schematics ----------------- None Robot Schematics ------------------ None Fabricated ------------ Nothing Alien Tech Used ----------------- None Achievements -------------- None Challenges ------------ None Game ------ Seed WardroneMultitargetingSaw Manual? 0 Play Time 00:29:59 Cumulative 14.3 hours Start 2024.09.03 @ 14:45:40 End 2024.09.03 @ 15:12:49 Sessions 1 Manual Loads 0 Difficulty Rogue Special Mode None Game No. 15 Rogue 15 Adventurer 0 Explorer 0 Win Type - Total 0 Types 0/0/0/0/0/0/0/0/0 Lore% 13 Gallery% 17 Achievement% 16 Wizard Run 0 Options --------- Layout 1 ASCII 0 Keyboard 1 Movement Numpad Keybinds 0 Fullscreen 2 Font 48/Tamsyn Map View 50x35 Zoom Use 0% Tactical HUD 1 Map Filters NONE Filters NONE Steam 1 RUN: faff10bd-e4b5-41d0-b94e-5c2c433fa90b